bitfinex/quotes_SOLUSD_20250602
["timestamp","ask_amount","ask_price","bid_price","bid_amount"]
[1748861458018,58.32285471,153.98,153.93,51.0191185]
[1748861458532,18.52285471,153.97,153.93,51.0191185]
[1748861458703,39.78,153.96,153.93,51.0191185]
[1748861460518,39.78,153.96,153.93,32.49626379]
[1748861460733,39.78,153.96,153.93,51.0191185]
[1748861461718,39.78,153.96,153.93,32.49626379]
[1748861462244,39.78,153.96,153.93,51.0191185]
[1748861463336,39.78,153.96,153.94,18.52285471]
[1748861463724,39.78,153.96,153.95,18.52285471]
[1748861465237,39.78,153.96,153.95,6.49561545]
[1748861467237,39.78,153.96,153.94,6.49603741]
[1748861468253,39.78,153.96,153.93,121.29642086]
[1748861468448,39.78,153.96,153.93,95.29642086]
[1748861473237,58.30285471,153.96,153.93,88.8]
[1748861473741,58.30285471,153.96,153.92,6.49672667]
[1748861474146,58.30285471,153.96,153.92,25.01958138]
[1748861474363,39.78,153.96,153.94,18.52285471]
[1748861474845,37.17250357,153.95,153.87,18.52285471]
[1748861475026,37.17250357,153.93,153.88,44.52285471]
[1748861475225,39.78,153.92,153.89,18.52285471]
[1748861475452,39.78,153.92,153.9,18.52285471]
[1748861476059,39.78,153.92,153.89,18.52285471]
[1748861476258,39.78,153.92,153.9,6.49772579]
[1748861481157,39.78,153.92,153.91,11.88297533]
[1748861481350,1.5726,153.97,153.91,11.88297533]
[1748861481351,8.06764998,153.97,153.91,11.88297533]
[1748861481658,30.53262419,153.95,153.91,11.88297533]
[1748861482241,18.64964886,153.95,153.92,11.88297533]
[1748861483052,18.64964886,153.95,153.91,11.88297533]
[1748861483232,51.66297533,153.96,153.91,18.37985813]
[1748861484037,39.78,153.95,153.91,18.37985813]
[1748861485668,39.78,153.95,153.91,107.17985813]
[1748861486863,39.78,153.95,153.92,11.88297533]
[1748861488253,39.78,153.95,153.93,6.49645942]
[1748861491277,39.78,153.97,153.94,11.88297533]
[1748861491461,50.1,153.98,153.96,11.88297533]
[1748861492172,50.1,153.98,153.95,11.88297533]
[1748861494958,50.1,153.98,153.96,6.49519355]
[1748861496982,51.64297533,153.97,153.93,100.68297533]
[1748861497212,11.88297533,153.96,153.93,95.29643238]
[1748861497503,11.88297533,153.96,153.92,95.2966784]
[1748861498289,11.88297533,153.96,153.92,107.17965373]
[1748861499212,18.5643047,153.96,153.92,113.8609831]
[1748861499392,37.21395356,153.95,153.92,88.8]
[1748861499592,39.76,153.94,153.92,88.8]
[1748861500406,39.76,153.94,153.92,95.296795]
[1748861500718,10.32,153.98,153.93,44.5643047]
[1748861500902,50.08,153.98,153.97,18.5643047]
[1748861501509,10.32,153.98,153.97,18.5643047]
[1748861501821,14.68522409,154.01,153.97,18.5643047]
[1748861502113,4.66929243,154.01,154.0,18.5643047]
[1748861502915,4.66929243,154.01,154.0,25.05781119]
[1748861503698,4.66929243,154.01,154.0,6.49350649]
[1748861504095,4.66929243,154.01,154.0,25.05781119]
[1748861511433,4.66929243,154.01,153.99,25.05823287]
[1748861511612,4.66929243,154.01,154.0,18.5643047]
[1748861512929,4.66929243,154.01,153.99,113.85823287]
[1748861516042,4.66929243,154.01,154.0,18.5643047]
[1748861518641,4.66929243,154.01,154.0,25.05781119]
[1748861520439,4.66929243,154.01,153.99,95.29378596]
[1748861520844,4.66929243,154.01,153.99,113.85809066]
[1748861521244,4.66929243,154.01,153.99,107.16328383]
[1748861521437,4.66929243,154.01,154.0,11.86949787]
[1748861525247,4.66929243,154.01,154.0,18.36300436]
[1748861525552,4.66929243,154.01,154.0,133.16300436]
[1748861525737,4.66929243,154.01,154.0,180.64099584]
[1748861526045,39.74,154.06,154.03,26.0]
[1748861526256,39.74,154.08,154.06,6.49097754]
[1748861526421,11.8955,154.09,154.06,6.49097754]
[1748861526620,39.74,154.07,154.05,11.86949787]
[1748861527339,39.74,154.06,154.05,18.53316133]
[1748861527528,39.74,154.06,154.04,25.02458954]
[1748861527932,39.74,154.07,154.04,25.02458954]
[1748861529837,39.74,154.07,154.05,18.53316133]
[1748861531517,39.74,154.07,154.04,25.02458954]
[1748861535888,39.74,154.07,154.04,113.82458954]
[1748861536093,39.74,154.07,154.04,107.33316133]
[1748861536271,39.74,154.07,154.04,88.8]
[1748861536272,64.76385555,154.07,154.04,88.8]
[1748861536466,18.53316133,154.05,154.04,88.8]
[1748861536672,37.18281019,154.05,154.04,88.8]
[1748861537493,18.64964886,154.04,154.0,6.49345629]
[1748861537678,39.72,154.03,154.0,6.49345629]
[1748861538489,39.72,154.03,154.01,18.53316133]
[1748861539507,39.72,154.03,154.02,18.53316133]
[1748861539875,11.8755,154.09,154.02,44.53316133]
[1748861540073,39.72,154.08,154.06,18.53316133]
[1748861540475,39.72,154.07,154.06,18.53316133]
[1748861541582,39.72,154.07,154.06,25.02413887]
[1748861541783,39.72,154.07,154.05,6.49111909]
[1748861542181,39.72,154.07,154.04,25.02481335]
[1748861542991,39.72,154.07,154.03,25.02533884]
[1748861543507,58.25316133,154.07,154.03,25.02533884]
[1748861543799,39.72,154.07,154.03,25.02533884]
[1748861544002,18.53316133,154.05,154.0,18.53316133]
[1748861544211,39.72,154.04,154.0,18.53316133]
[1748861544380,39.72,154.04,154.01,18.53316133]
[1748861545193,39.72,154.04,154.0,18.53316133]
[1748861545711,39.72,154.04,154.01,6.49308486]
[1748861546287,39.72,154.04,154.01,25.02624619]
[1748861549290,39.72,154.04,154.01,6.49308486]
[1748861549912,58.25316133,154.04,154.0,95.29345813]
[1748861550209,58.25316133,154.04,154.0,113.82661946]
[1748861551010,39.72,154.04,154.0,113.82661946]
[1748861553716,39.72,154.04,154.0,25.02661946]
[1748861554503,18.64964886,154.03,154.0,25.02661946]
[1748861558096,39.72,154.04,154.01,18.53316133]
[1748861558517,39.72,154.04,154.0,25.02661946]
[1748861559506,39.72,154.04,154.0,113.82661946]
[1748861562615,39.72,154.04,154.01,18.53316133]
[1748861563007,39.72,154.04,154.0,113.82661946]
[1748861565702,39.72,154.04,154.01,18.53316133]
[1748861566810,39.72,154.04,154.02,6.49266329]
[1748861571832,39.72,154.04,154.01,6.49308486]
[1748861572622,39.72,154.04,154.01,25.02624619]
[1748861572832,39.72,154.04,154.02,18.53316133]
[1748861573841,39.72,154.04,154.01,25.02624619]
[1748861574441,28.92964886,154.05,154.01,25.02624619]
[1748861574620,39.72,154.04,154.01,6.49308486]
[1748861574820,58.25316133,154.04,154.01,6.49308486]
[1748861578455,39.72,154.04,154.01,6.49308486]
[1748861578974,18.64964886,154.04,154.01,6.49308486]
[1748861579168,39.7,154.03,154.01,6.49308486]
[1748861581239,1.5955,154.09,154.02,18.53316133]
[1748861581481,0.7522683,154.1,154.08,18.53316133]
[1748861581963,0.7522683,154.1,154.07,18.53316133]
[1748861582145,58.23316133,154.09,154.05,18.53316133]
[1748861582946,58.23316133,154.09,154.06,6.49097754]
[1748861586363,39.7,154.09,154.06,25.02413887]
[1748861586666,11.0322683,154.1,154.08,18.53316133]
[1748861586866,50.7322683,154.1,154.08,18.53316133]
[1748861587762,50.7322683,154.1,154.07,18.53316133]
[1748861587952,69.26542963,154.1,154.06,113.82413887]
[1748861588261,50.7322683,154.1,154.07,18.53316133]
[1748861588470,50.7322683,154.1,154.08,6.49013499]
[1748861592243,11.0322683,154.1,154.08,25.02329632]
[1748861592446,11.0322683,154.1,154.09,18.53316133]
[1748861594191,11.0322683,154.1,154.08,25.02329632]
[1748861595558,11.0322683,154.1,154.09,18.53316133]
[1748861596365,11.0322683,154.1,154.09,25.02287513]
[1748861597986,11.0322683,154.1,154.09,113.82287513]
[1748861600270,0.7522683,154.1,154.09,113.82287513]
[1748861603585,0.7522683,154.1,154.09,139.82287513]
[1748861603787,10.28,154.18,154.13,18.53316133]
[1748861603963,10.28,154.18,154.17,18.53316133]
[1748861604387,10.28,154.18,154.16,18.53316133]
[1748861605077,49.96,154.18,154.14,6.48760866]
[1748861605275,49.96,154.18,154.16,18.53316133]
[1748861605791,49.96,154.18,154.15,18.53316133]
[1748861605975,10.28,154.18,154.15,18.53316133]
[1748861606175,39.68,154.17,154.15,18.53316133]
[1748861607891,39.68,154.17,154.16,18.53316133]
[1748861609482,39.68,154.17,154.15,6.48681845]
[1748861609689,39.68,154.17,154.15,113.81997978]
[1748861609896,39.68,154.17,154.16,18.53316133]
[1748861610195,18.64964886,154.2,154.16,18.53316133]
[1748861610493,18.64964886,154.22,154.19,18.53316133]
[1748861610996,58.32964886,154.22,154.19,18.53316133]
[1748861611368,10.26,154.23,154.2,18.53316133]
[1748861611568,39.68,154.22,154.2,18.53316133]
[1748861611991,39.68,154.22,154.19,6.4851531]
[1748861615689,39.68,154.22,154.19,95.2851531]
[1748861616194,39.68,154.22,154.19,113.81831443]
[1748861618082,10.26,154.23,154.19,113.81831443]
[1748861618283,39.66,154.22,154.19,113.81831443]
[1748861619173,1.5583,154.28,154.21,18.53316133]
[1748861619374,39.66,154.26,154.24,18.53316133]
[1748861619587,58.19316133,154.25,154.21,18.53316133]
[1748861619794,39.66,154.25,154.22,18.53316133]
[1748861619973,39.66,154.25,154.24,18.53316133]
[1748861620178,39.66,154.25,154.24,25.01656381]
[1748861620406,58.30964886,154.27,154.24,25.01656381]
[1748861621183,11.8183,154.28,154.25,18.53316133]
[1748861621376,39.66,154.27,154.25,18.53316133]
[1748861622501,39.66,154.27,154.24,18.53316133]
[1748861622702,39.66,154.27,154.23,18.53316133]
[1748861623629,39.66,154.27,154.24,18.53316133]
[1748861624126,18.64964886,154.27,154.24,18.53316133]
[1748861624331,58.30964886,154.27,154.24,18.53316133]
[1748861624544,58.30964886,154.27,154.24,25.01653205]
[1748861625412,58.28964886,154.27,154.24,25.01653205]
[1748861627126,18.64964886,154.27,154.24,25.01653205]
[1748861627329,58.28964886,154.27,154.24,25.01653205]
[1748861627530,58.28964886,154.27,154.25,18.53316133]
[1748861627711,39.64,154.27,154.25,18.53316133]
[1748861628839,39.64,154.27,154.24,25.01653205]
[1748861630438,39.64,154.27,154.24,113.81653205]
[1748861630938,37.18281019,154.26,154.24,88.8]
[1748861631325,18.64964886,154.26,154.24,88.8]
[1748861634049,39.64,154.26,154.24,95.28324758]
[1748861634424,39.64,154.26,154.24,113.81640891]
[1748861638151,39.64,154.26,154.25,18.53316133]
[1748861638734,39.64,154.26,154.24,95.28324758]
[1748861638943,39.64,154.26,154.24,113.81640891]
[1748861640055,39.64,154.27,154.24,113.81640891]
[1748861640239,39.64,154.27,154.24,95.28324758]
[1748861640430,39.64,154.27,154.24,113.81640891]
[1748861644363,39.64,154.27,154.25,18.53316133]
[1748861644577,10.26,154.28,154.26,18.53316133]
[1748861644731,39.64,154.27,154.26,25.01572323]
[1748861645557,49.9,154.28,154.26,25.01572323]
[1748861645769,10.26,154.28,154.26,25.01572323]
[1748861645966,49.9,154.28,154.26,25.01572323]
[1748861646167,10.26,154.28,154.26,25.01572323]
[1748861646361,49.9,154.28,154.26,25.01572323]
[1748861646548,2.94788419,154.29,154.26,25.01572323]
[1748861646747,42.58788419,154.29,154.26,25.01572323]
[1748861648080,42.58788419,154.29,154.26,6.4825619]
[1748861648379,42.58788419,154.29,154.26,25.01572323]
[1748861651185,42.58788419,154.29,154.26,113.81572323]
[1748861653276,42.58788419,154.29,154.26,95.2825619]
[1748861654963,2.94788419,154.29,154.26,113.81572323]
[1748861655170,2.94788419,154.29,154.28,18.53316133]
[1748861655564,2.94788419,154.29,154.26,95.2825619]
[1748861655891,2.94788419,154.29,154.26,113.81572323]
[1748861657682,42.56788419,154.29,154.26,113.81572323]
[1748861659264,42.56788419,154.29,154.26,107.11187788]
[1748861660089,42.56788419,154.29,154.26,18.31187788]
[1748861660291,11.82931598,154.28,154.24,6.48340248]
[1748861660582,51.44931598,154.27,154.23,6.48373365]
[1748861661107,51.44931598,154.27,154.23,18.31304963]
[1748861661313,58.11076675,154.27,154.23,24.9745004]
[1748861663086,58.11076675,154.27,154.23,113.7745004]
[1748861665794,58.11076675,154.27,154.24,18.49076675]
[1748861666508,58.11076675,154.27,154.24,24.97415913]
[1748861668119,39.62,154.27,154.24,24.97415913]
[1748861668295,39.62,154.27,154.25,18.49076675]
[1748861668703,39.62,154.27,154.25,6.48290811]
[1748861670004,39.62,154.27,154.25,24.97367486]
[1748861671215,39.62,154.27,154.25,6.48290811]
[1748861682420,39.62,154.27,154.24,95.28326187]
[1748861684348,39.62,154.27,154.24,107.11501444]
[1748861685030,39.62,154.27,154.24,95.28326187]
[1748861685845,39.62,154.27,154.24,107.11501444]
[1748861686629,39.62,154.27,154.24,18.31501444]
[1748861689845,18.64964886,154.26,154.2,105.0126586]
[1748861690042,51.45175257,154.25,154.2,100.63175257]
[1748861690245,51.45175257,154.25,154.2,88.8]
[1748861690544,51.45175257,154.25,154.2,100.63175257]
[1748861690921,51.45175257,154.25,154.21,6.48466377]
[1748861692521,39.62,154.25,154.21,18.31641634]
[1748861692840,57.93489225,154.25,154.21,11.83175257]
[1748861693044,11.83175257,154.24,154.2,107.116676]
[1748861693236,39.62,154.23,154.2,107.116676]
[1748861697943,11.83175257,154.24,154.2,107.116676]
[1748861698146,11.83175257,154.25,154.21,11.83175257]
[1748861699453,11.83175257,154.25,154.22,6.48424328]
[1748861700153,39.62,154.24,154.22,6.48424328]
[1748861702342,39.62,154.24,154.23,11.83175257]
[1748861702542,39.62,154.24,154.22,18.31599585]
[1748861703728,22.07175257,154.28,154.23,11.83175257]
[1748861703959,39.62,154.27,154.24,11.83175257]
[1748861704165,10.24,154.28,154.24,11.83175257]
[1748861704334,49.86,154.28,154.25,11.83175257]
[1748861704732,49.86,154.28,154.24,11.83175257]
[1748861705539,61.69175257,154.28,154.24,11.83175257]
[1748861705942,61.69175257,154.28,154.24,18.31515505]
[1748861708365,49.86,154.28,154.24,18.31515505]
[1748861708549,61.69175257,154.28,154.24,18.31515505]
[1748861708955,10.24,154.28,154.25,11.83175257]
[1748861709270,39.62,154.28,154.26,11.83175257]
[1748861710668,39.62,154.28,154.27,6.48214169]
[1748861713285,39.62,154.28,154.26,6.4825619]
[1748861713576,61.19753305,154.29,154.26,6.4825619]
[1748861713942,2.94788419,154.29,154.26,34.52071924]
[1748861714169,2.94788419,154.29,154.27,11.83175257]
[1748861715575,2.94788419,154.29,154.28,6.48172154]
[1748861717169,2.94788419,154.29,154.27,11.83175257]
[1748861719181,2.94788419,154.29,154.28,6.48172154]
[1748861720874,18.64964886,154.28,154.24,6.48340248]
[1748861721187,11.83175257,154.25,154.2,100.63175257]
[1748861721388,51.43175257,154.25,154.21,11.83175257]
[1748861722186,51.43175257,154.25,154.21,6.48466377]
[1748861723679,51.43175257,154.25,154.21,18.31641634]
[1748861725166,58.09674383,154.25,154.21,24.9814076]
[1748861726489,18.49674383,154.23,154.2,88.8]
[1748861726693,18.49674383,154.23,154.19,24.98224872]
[1748861727009,18.49674383,154.22,154.19,6.48550489]
[1748861727364,18.49674383,154.23,154.19,24.98224872]
[1748861727873,58.09674383,154.22,154.17,24.98309007]
[1748861728074,39.6,154.22,154.18,18.49674383]
[1748861728312,39.6,154.22,154.18,24.98230281]
[1748861728511,39.6,154.22,154.19,18.49674383]
[1748861730221,39.6,154.22,154.18,24.98230281]
[1748861731114,39.6,154.22,154.18,113.78230281]
[1748861733927,39.6,154.22,154.19,18.49674383]
[1748861734436,18.49674383,154.2,154.15,18.49674383]
[1748861734601,18.49674383,154.2,154.16,18.49674383]
[1748861734803,37.14639269,154.21,154.16,18.49674383]
[1748861734996,37.14639269,154.21,154.17,18.49674383]
[1748861735197,37.14639269,154.21,154.17,24.98290367]
[1748861736116,18.49674383,154.19,154.13,3.38604877]
[1748861736296,58.09674383,154.19,154.14,24.98429345]
[1748861736708,58.09674383,154.19,154.15,18.49674383]
[1748861736898,58.09674383,154.19,154.14,24.98429345]
[1748861739913,58.09674383,154.19,154.14,113.78429345]
[1748861740432,58.09674383,154.19,154.15,18.49674383]
[1748861741603,58.09674383,154.19,154.15,24.98370973]
[1748861743413,58.09674383,154.19,154.15,6.4869659]
[1748861745227,51.44748394,154.19,154.15,6.4869659]
[1748861749736,57.93299308,154.19,154.15,6.4869659]
[1748861749915,51.44748394,154.19,154.15,6.4869659]
[1748861750113,18.64964886,154.21,154.16,11.84748394]
[1748861750436,51.46748394,154.2,154.16,11.84748394]
[1748861751147,51.46748394,154.2,154.17,6.48634624]
[1748861761276,51.46748394,154.2,154.16,107.13410143]
[1748861761858,51.46748394,154.2,154.16,95.28661749]
[1748861762050,11.84748394,154.19,154.16,95.28661749]
[1748861766957,39.62,154.2,154.17,11.84748394]
[1748861767148,39.6,154.2,154.18,11.84748394]
[1748861767357,39.6,154.2,154.17,11.84748394]
[1748861767580,51.44748394,154.2,154.16,107.13410143]
[1748861768071,51.44748394,154.2,154.16,95.28661749]
[1748861768275,11.84748394,154.19,154.16,95.28661749]
[1748861768575,39.6,154.18,154.16,95.28661749]
[1748861768966,39.6,154.18,154.16,107.13410143]
[1748861780184,39.6,154.18,154.16,95.28661749]
[1748861780384,39.6,154.18,154.16,88.8]
[1748861781302,39.6,154.18,154.15,95.2870217]
[1748861782688,39.6,154.18,154.15,107.13450564]
[1748861783898,39.6,154.18,154.15,95.2870217]
[1748861784911,39.6,154.18,154.15,107.13450564]
[1748861787192,39.6,154.18,154.15,18.33450564]
[1748861790709,30.4971328,154.17,154.13,3.38604877]
[1748861790913,30.4971328,154.15,154.13,3.38604877]
[1748861791086,39.6,154.14,154.11,18.33609092]
[1748861793412,10.22,154.17,154.13,11.84748394]
[1748861793612,10.22,154.17,154.16,11.84748394]
[1748861793789,49.82,154.17,154.16,11.84748394]
[1748861794096,49.82,154.17,154.15,11.84748394]
[1748861794899,49.82,154.17,154.14,18.3350926]
[1748861795284,49.82,154.17,154.14,25.00041102]
[1748861795700,49.82,154.17,154.13,88.8]
[1748861795701,68.33280236,154.17,154.13,113.80072796]
[1748861798411,49.82,154.17,154.13,113.80072796]
[1748861799113,49.82,154.17,154.13,25.00072796]
[1748861800924,68.33280236,154.17,154.12,25.00106016]
[1748861801592,37.16245122,154.16,154.12,25.00106016]
[1748861801797,39.6,154.15,154.12,25.00106016]
[1748861802000,39.6,154.15,154.09,88.8]
[1748861802205,18.51280236,154.11,154.09,88.8]
[1748861802409,18.64964886,154.1,154.06,25.00360659]
[1748861802611,39.6,154.09,154.06,25.00360659]
[1748861803038,39.6,154.09,154.06,6.49080423]
[1748861803213,39.6,154.09,154.04,25.00462266]
[1748861803214,58.11280236,154.09,154.04,25.00462266]
[1748861803642,58.11280236,154.09,154.04,6.4918203]
[1748861803946,58.11280236,154.09,154.05,18.51280236]
[1748861805534,58.11280236,154.09,154.05,25.00391373]
[1748861806658,58.11280236,154.09,154.05,6.49111137]
[1748861808952,37.16245122,154.07,154.03,18.51280236]
[1748861809130,39.6,154.06,154.03,18.51280236]
[1748861809530,39.6,154.06,154.03,25.00504413]
[1748861817930,39.6,154.06,154.03,6.49224177]
[1748861818138,39.6,154.06,154.03,25.00504413]
[1748861821667,39.6,154.06,154.04,18.51280236]
[1748861821873,10.22,154.07,154.05,18.51280236]
[1748861822977,59.18843825,154.08,154.06,18.51280236]
[1748861823160,59.18843825,154.08,154.07,18.51280236]
[1748861823662,59.18843825,154.08,154.07,25.0033586]
[1748861825871,59.18843825,154.08,154.05,18.51280236]
[1748861826075,59.18843825,154.08,154.04,6.4918203]
[1748861826281,59.18843825,154.08,154.06,18.51280236]
[1748861827777,59.18843825,154.08,154.06,25.00358365]
[1748861827978,59.18843825,154.08,154.06,6.49078129]
[1748861829952,59.18843825,154.08,154.07,18.51280236]
[1748861830952,59.18843825,154.08,154.06,6.49078129]
[1748861831279,59.18843825,154.08,154.07,18.51280236]
[1748861832957,59.18843825,154.08,154.07,25.0033586]
[1748861834593,59.18843825,154.08,154.07,113.8033586]
[1748861839883,59.18843825,154.08,154.07,138.39706096]
[1748861840076,39.6,154.13,154.07,117.59784684]
[1748861840273,39.6,154.13,154.1,18.51280236]
[1748861840592,39.6,154.13,154.1,25.00174177]
[1748861840780,39.6,154.13,154.1,6.48893941]
[1748861840985,58.11280236,154.13,154.09,25.00239038]
[1748861841188,58.11280236,154.13,154.08,25.00280621]
[1748861842705,18.51280236,154.12,154.08,25.00280621]
[1748861842906,39.6,154.11,154.08,25.00280621]
[1748861843606,39.6,154.11,154.08,113.80280621]
[1748861844005,39.6,154.11,154.08,107.31280236]
[1748861844182,39.6,154.11,154.08,88.8]
[1748861844505,58.11280236,154.11,154.08,88.8]
[1748861845785,68.33280236,154.11,154.08,88.8]
[1748861848315,10.22,154.11,154.08,113.80269811]
[1748861848515,39.6,154.1,154.08,113.80269811]
[1748861849422,39.6,154.1,154.08,25.00269811]
[1748861849924,39.6,154.1,154.07,18.51280236]
[1748861851327,39.6,154.1,154.08,18.51280236]
[1748861852431,39.6,154.1,154.09,6.4897138]
[1748861852726,10.22,154.11,154.09,25.00251616]
[1748861853028,49.82,154.11,154.09,25.00251616]
[1748861853410,10.22,154.11,154.1,18.51280236]
[1748861853923,10.22,154.11,154.09,25.00251616]
[1748861855204,10.22,154.11,154.09,113.80251616]
[1748861855703,39.58,154.13,154.1,18.51280236]
[1748861855897,39.58,154.13,154.11,18.51280236]
[1748861857246,47.38245122,154.15,154.12,6.48845055]
[1748861857439,39.58,154.14,154.12,6.48845055]
[1748861857937,47.38245122,154.15,154.12,6.48845055]
[1748861858136,39.58,154.14,154.12,6.48845055]
[1748861859850,39.58,154.14,154.11,25.00149923]
[1748861864367,39.58,154.14,154.11,6.48869687]
[1748861864555,58.09280236,154.14,154.11,6.48869687]
[1748861864966,58.09280236,154.14,154.1,25.00191173]
[1748861865167,18.51280236,154.13,154.09,88.8]
[1748861866063,18.51280236,154.13,154.09,95.28963001]
[1748861867037,18.51280236,154.12,154.09,95.28963001]
[1748861867775,18.51280236,154.13,154.09,95.28963001]
[1748861868883,18.51280236,154.12,154.09,95.28963001]
[1748861869042,39.58,154.11,154.09,95.28963001]
[1748861872146,39.58,154.11,154.09,88.8]
[1748861872348,18.51280236,154.1,154.09,88.8]
[1748861872554,47.38245122,154.1,154.09,88.8]
[1748861872749,18.64964886,154.09,154.03,88.8]
[1748861872953,18.51280236,154.06,154.04,6.49163144]
[1748861873167,58.09280236,154.06,154.04,6.49163144]
[1748861874856,39.58,154.06,154.04,6.49163144]
[1748861876370,58.09280236,154.06,154.04,6.49163144]
[1748861878677,18.51280236,154.05,154.01,6.49297039]
[1748861878982,58.09280236,154.04,154.01,6.49297039]
[1748861879170,39.58,154.03,154.01,6.49297039]
[1748861883767,39.58,154.03,154.01,25.00577275]
[1748861884886,68.33280236,154.05,154.01,113.80577275]
[1748861886877,68.33280236,154.05,154.01,95.29297039]
[1748861890191,10.22,154.05,154.01,113.80577275]
[1748861890388,49.82,154.05,154.02,18.51280236]
[1748861892293,49.82,154.05,154.03,6.49224177]
[1748861892483,10.22,154.05,154.04,18.51280236]
[1748861892992,10.22,154.05,154.03,25.00504413]
[1748861893705,10.22,154.05,154.03,6.49224177]
[1748861896802,10.22,154.05,154.03,113.80504413]
[1748861897913,10.22,154.05,154.03,95.29224177]
[1748861902340,10.22,154.05,154.04,18.51280236]
[1748861902630,39.6,154.07,154.04,107.31280236]
[1748861902799,18.51280236,154.08,154.04,107.31280236]
[1748861903227,58.11280236,154.08,154.04,107.31280236]
[1748861904931,39.6,154.08,154.05,6.49139889]
[1748861905341,58.11280236,154.08,154.05,6.49139889]
[1748861908326,58.11280236,154.08,154.05,25.00420125]
[1748861908327,39.58,154.08,154.05,25.00420125]
[1748861908507,39.58,154.08,154.05,113.80420125]
[1748861909249,39.58,154.08,154.05,107.15185631]
[1748861909934,10.22,154.09,154.05,107.15185631]
[1748861910137,39.58,154.08,154.05,107.15185631]
[1748861911256,49.8,154.09,154.05,113.82307394]
[1748861912263,68.33167505,154.09,154.05,95.29139889]
[1748861912455,58.11167505,154.08,154.05,95.29139889]
[1748861914549,58.11167505,154.08,154.04,6.4918203]
[1748861917653,58.11167505,154.08,154.04,25.02349535]
[1748861919144,39.58,154.08,154.04,25.02349535]
[1748861923568,10.70282306,154.12,154.07,18.53167505]
[1748861923745,50.28282306,154.12,154.09,18.53167505]
[1748861923948,50.28282306,154.12,154.08,18.53167505]
[1748861924243,68.81449811,154.12,154.07,107.33167505]
[1748861924471,18.53167505,154.11,154.07,107.33167505]
[1748861924650,18.53167505,154.1,154.07,88.8]
[1748861925756,18.53167505,154.1,154.07,95.29037678]
[1748861926672,58.11167505,154.09,154.07,88.8]
[1748861929275,58.11167505,154.09,154.06,6.49077848]
[1748861929453,18.53167505,154.08,154.05,95.29139818]
[1748861929651,39.58,154.07,154.05,6.49139818]
[1748861943687,10.70282306,154.12,154.06,11.86241721]
[1748861943994,50.28282306,154.12,154.08,11.86241721]
[1748861944294,11.86241721,154.11,154.07,11.86241721]
[1748861944996,39.58,154.11,154.08,11.86241721]
[1748861946090,39.58,154.11,154.05,111.51989542]
[1748861946283,39.58,154.11,154.09,6.4897138]
[1748861948209,39.58,154.11,154.08,18.3525522]
[1748861949996,39.58,154.11,154.08,107.1525522]
[1748861950517,10.70282306,154.12,154.08,107.1525522]
[1748861950809,50.26282306,154.12,154.08,107.1525522]
[1748861951782,62.12524027,154.12,154.08,107.1525522]
[1748861956201,11.86241721,154.11,154.08,88.8]
[1748861956506,51.42241721,154.1,154.08,88.8]
[1748861958408,51.42241721,154.1,154.08,95.29004941]
[1748861958704,39.56,154.1,154.08,95.29004941]
[1748861959808,39.56,154.1,154.08,107.15246662]
[1748861960111,39.56,154.1,154.09,11.86241721]
[1748861960407,39.56,154.1,154.08,107.15246662]
[1748861960588,50.26282306,154.12,154.08,107.15246662]
[1748861962103,50.26282306,154.12,154.08,18.35246662]
[1748861965307,10.70282306,154.12,154.09,11.86241721]
[1748861965518,50.26282306,154.12,154.09,11.86241721]
[1748861965691,50.26282306,154.12,154.08,6.49004941]
[1748861965892,50.26282306,154.12,154.08,18.35246662]
[1748861966408,50.26282306,154.12,154.08,6.49004941]
[1748861966610,62.12524027,154.12,154.08,18.35246662]
[1748861967712,50.26282306,154.12,154.08,107.15246662]
[1748861986548,50.26282306,154.12,154.09,11.86241721]
[1748861987344,50.26282306,154.12,154.1,6.48929266]
[1748861988920,50.26282306,154.12,154.09,6.48951364]
[1748861990921,39.56,154.12,154.09,6.48951364]
[1748861991351,39.56,154.12,154.09,95.28951364]
[1748861993732,51.42241721,154.12,154.09,88.8]
[1748861993939,11.86241721,154.1,154.09,88.8]
[1748861994139,51.40241721,154.1,154.09,88.8]
[1748861997240,51.40241721,154.1,154.08,6.4900975]
[1748861997446,11.86241721,154.09,154.08,6.4900975]
[1748861998042,11.86241721,154.09,154.07,95.29036168]